Cogmind - Beta 14 @@@ ROGUE MODE // 2024.09.11 @ 18:11:47 Player: Some Pennies Result: Destroyed by AD-8KC(R) with Subdweller Beam Cannon Performance ------------- Evolutions (0) 0 Regions Visited (2) 400 Robots Destroyed (39) 195 Value Destroyed (831) 831 Prototype IDs (1) 20 Alien Tech Used (0) 0 Bonus (0) 0 TOTAL SCORE: 1446 Bonus ------- None Cogmind --------- Core Integrity 0/250 Matter 42/300 Energy 242/250 System Corruption 0% Temperature Cool (9) Movement Treading (160) Location -10/Subcaves Parts ------- > --- POWER (1) -------- Ion Engine > --- PROPULSION (2) --- Light Treads Light Treads > --- UTILITY (2) ------ Large Storage Unit Seismic Detector > --- WEAPON (2) ------- Subdweller Laser Light Cannon > --- INVENTORY (15) --- Subdweller Power Source Light Treads Light Treads Medium Storage Unit Transport Network Coupler ECM Suite Assault Rifle Improved Assault Rifle Grenade Launcher Hammer Peak State ------------ > --- POWER ------------ Ion Engine > --- PROPULSION ------- Light Treads Light Treads > --- UTILITY ---------- Large Storage Unit Makeshift Kinetic Plating > --- WEAPON ----------- Improved Assault Rifle Light Cannon > --- INVENTORY -------- Ion Engine Light Treads Light Treads Light Treads Light Treads Light Treads Medium Storage Unit Seismic Detector Transport Network Coupler ECM Suite Assault Rifle Improved Assault Rifle Light Cannon Grenade Launcher Hammer [Rating: 13] Favorites ----------- Power Ion Engine Engine Ion Engine Propulsion Light Treads Treads Light Treads Utility Heat Sink Device Heat Sink Storage Large Storage Unit Protection Makeshift Kinetic Plating Weapon Light Cannon Energy Gun Medium Laser Energy Cannon Subdweller Beam Cannon Ballistic Gun Improved Assault Rifle Ballistic Cannon Light Cannon Launcher Grenade Launcher Impact Weapon Hammer Build | -11 -10 -10 ------- Run | Yrd Mat Sub Slots Evolved . | . . . Power . | . . . Propulsion . | . . . Utility . | . . . Weapon . | . . . Parts Attached 42 | 6 18 18 Power 3 | . 2 1 Engine 3 | . 2 1 Core . | . . . Reactor . | . . . Propulsion 9 | 2 4 3 Treads 9 | 2 4 3 Leg . | . . . Wheel . | . . . Hover . | . . . Flight . | . . . Utility 7 | 2 3 2 Device 3 | 1 1 1 Storage 3 | 1 2 . Processor . | . . . Hackware . | . . . Protection 1 | . . 1 Artifact . | . . . Weapon 23 | 2 9 12 Energy Gun 3 | 2 . 1 Energy Cannon 1 | . . 1 Ballistic Gun 11 | . 6 5 Ballistic Cannon 5 | . 2 3 Launcher 2 | . 1 1 Special Weapon . | . . . Impact Weapon 1 | . . 1 Slashing Weapon . | . . . Piercing Weapon . | . . . Special Melee Weapon . | . . . Unidentified Prototypes 1 | . 1 . Parts Lost 9 | . 1 8 Power 1 | . . 1 Propulsion 4 | . 1 3 Utility 1 | . . 1 Weapon 3 | . . 3 Highest Loss Streak 5 | . 1 5 To Critical Strikes . | . . . Average Slot Usage (%) 98 | . 98 97 Engine 12 | . 13 12 Treads 27 | . 27 28 Device 10 | . 14 3 Storage 14 | . 14 14 Protection 3 | . . 10 Energy Gun 5 | . 8 . Ballistic Gun 11 | . 15 2 Ballistic Cannon 10 | . 3 23 Peak Build Rating 13 | 6 12 13 Average Rating 9 | 4 9 10 On Entrance 4 | . 6 8 Naked Turns . | . . . Heaviest Build 38 | 9 32 38 Greatest Support 40 | 40 40 40 Greatest Overweight (x) 1 | . 1 . Average Overweight (x) . | . . . Largest Inventory Capacity 15 | 8 15 15 Average Capacity 12 | 5 11 15 Most Carried 15 | 7 15 15 Average Carried 12 | 4 11 14 Final Capacity 15 | 8 15 15 Final Carried 15 | 7 15 10 Class Distribution -------------------- 100% | Mutant Dominant Class ---------------- Mutant | -10/Materials Mutant | -10/Subcaves Resources | -11 -10 -10 ----------- Run | Yrd Mat Sub Matter Collected 951 | 260 490 201 Remotely . | . . . Salvage Created 1237 | 143 918 176 Parts 71 | 6 53 12 Haulers Intercepted 2 | . 2 . Recyclers Shooed 2 | . 2 . Parts Field Recycled . | . . . Retrieved Matter . | . . . Parts Self-Destructed 7 | . . 7 Prevented . | . . . Kills | -11 -10 -10 ------- Run | Yrd Mat Sub Combat Hostiles Destroyed 24 | . 14 10 Guns 10 | . 8 2 Cannons 8 | . 2 6 AOE 5 | . 3 2 Classes Destroyed 9 | 2 5 2 Tunneler 3 | 3 . . Hauler 2 | . 2 . Recycler 6 | 1 5 . Operator 2 | . 2 . Watcher 2 | . 2 . Swarmer 7 | . 3 4 Grunt 12 | . 11 1 Sentry 1 | . . 1 Subdweller 4 | . . 4 Best Kill Streak 4 | 4 4 4 Combat Bots Only 4 | . 3 4 Max Kills in Single Turn 2 | 1 2 2 Gunslinging . | . . . Exploded 2 | . 2 2 Melee . | . . . Uniques/NPCs Destroyed . | . . . Combat | -11 -10 -10 -------- Run | Yrd Mat Sub Hostile Shots Fired 159 | . 73 86 Missed 31 | . 15 16 Damage Taken 2066 | . 765 1301 Core 259 | . 74 185 Absorbed by Shields . | . . . Ignored by Resistances 18 | . . 18 Regen/Repaired (Parts) 96 | . 96 . Core Remaining (%) 100 | 100 . . Volleys Fired 143 | 14 85 44 Largest 2 | 2 2 2 Hottest 140 | 90 90 140 Shots Fired 280 | 28 167 85 Gun 198 | 28 152 18 Cannon 76 | . 12 64 Launcher 6 | . 3 3 Special . | . . . Kinetic 167 | . 91 76 Thermal 107 | 28 73 6 Explosive 6 | . 3 3 Electromagnetic . | . . . Robot Hit Streak 29 | 12 29 22 Robot Miss Streak 5 | 3 5 2 Penetration Max . | . . . Secondary Targets . | . . . Shots Hit Robots 197 | 19 114 64 Core Hits 66 | 5 43 18 Critical Kills . | . . . Critical Parts Destroyed . | . . . Critical Strikes 7 | 2 2 3 Burn 4 | 2 2 . Blast 3 | . . 3 Melee Attacks 4 | . . 4 Impact 4 | . . 4 Slashing . | . . . Piercing . | . . . Sneak Attacks . | . . . Combat Hostiles . | . . . Follow-up Attacks . | . . . Damage Inflicted 3087 | 226 1776 1085 Guns 1816 | 226 1427 163 Cannons 904 | . 119 785 Explosions 346 | . 209 137 Melee . | . . . Ramming 21 | . 21 . Kinetic 1969 | . 1021 948 Thermal 751 | 226 525 . Explosive 346 | . 209 137 Electromagnetic . | . . . Impact . | . . . Slashing . | . . . Piercing . | . . . Highest Corruption . | . . . Average Corruption . | . . . Corruption Purged . | . . . Corruption Blocked . | . . . Overload Shots . | . . . Overflow Damage . | . . . Projectiles . | . . . Explosions . | . . . Melee . | . . . Knockbacks 10 | . 2 8 Impact . | . . . Kinetic 6 | . 1 5 Secondary 4 | . 1 3 Self-Inflicted Damage 23 | . 23 . Shots 1 | . 1 . Rammed 3 | . 3 . Targets Rammed 3 | . 3 . Kicked . | . . . Crushed . | . . . Highest Temperature 135 | 105 135 36 Average Temperature 47 | 43 52 24 Received Heat Transfer 795 | . 411 384 Siege Activations . | . . . Robots Corrupted . | . . . Combat Hostiles . | . . . Parts Fried . | . . . Impact Corruptions . | . . . Robots Melted 1 | . 1 . Combat Hostiles 1 | . 1 . Parts Melted 8 | 4 4 . Heat Transferred 2350 | 743 1607 . Parts Sabotaged . | . . . Parts Stolen . | . . . Parts Stripped . | . . . Power Chain Reactions . | . . . Alert | -11 -10 -10 ------- Run | Yrd Mat Sub Peak Influence 301 | 20 301 . Initial 13 | . 13 . Average 104 | 10 110 . Maximum Alert Level 1 | . 1 . Low Security (%) 91 | 100 91 . Level 1 8 | . 8 . Level 2 . | . . . Level 3 . | . . . Level 4 . | . . . Level 5 . | . . . High Security . | . . . Max Security . | . . . Squads Dispatched 4 | . 4 . Investigation 3 | . 3 . Extermination . | . . . Reinforcement 1 | . 1 . Assault . | . . . Garrison . | . . . Intercept . | . . . Searches Triggered . | . . . Construction Impeded . | . . . Haulers Reinforced . | . . . Active Scanning Responses . | . . . Cargo Convoy Interrupts . | . . . Stealth | -11 -10 -10 --------- Run | Yrd Mat Sub Distress Signals 3 | . 3 . Communications Jammed . | . . . Distress Signals . | . . . Times Spotted 44 | . 31 13 Peak Tracking Total 6 | . 4 6 Tactical Retreats 3 | . 2 1 Traps | -11 -10 -10 ------- Run | Yrd Mat Sub Traps Triggered 1 | . 1 . Indirectly . | . . . Trap Hack Attempts . | . . . Triggered . | . . . Disarmed . | . . . Reprogrammed . | . . . Reused . | . . . Traps Extracted . | . . . Installed . | . . . Triggered . | . . . Machines | -11 -10 -10 ---------- Run | Yrd Mat Sub Machines Disabled 3 | . 1 2 Max in Single Turn 1 | . 1 1 Machines Repaired . | . . . Machines Dismantled . | . . . Machines Sabotaged . | . . . Overloaded Fab Kills . | . . . Hacking | -11 -10 -10 --------- Run | Yrd Mat Sub Machines Accessed 9 | . 9 . Terminals 6 | . 6 . Fabricators . | . . . Repair Stations 1 | . 1 . Recycling Units 2 | . 2 . Scanalyzers . | . . . Garrison Access . | . . . Total Hacks 23 | . 23 . Successful 13 | . 13 . Failed 9 | . 9 . Catastrophic 2 | . 2 . Database Lockouts 1 | . 1 . Manual 17 | . 17 . Terminals 16 | . 16 . Fabricators . | . . . Repair Stations 2 | . 2 . Recycling Units 5 | . 5 . Scanalyzers . | . . . Garrison Access . | . . . Terminal Hacks 3 | . 3 . Robot Analysis 1 | . 1 . Emergency Access Points 1 | . 1 . Zone Layout 1 | . 1 . Fabricator Hacks . | . . . Repair Station Hacks 2 | . 2 . Scan Component 1 | . 1 . Repair 1 | . 1 . Recycling Unit Hacks 1 | . 1 . Retrieve Components 1 | . 1 . Scanalyzer . | . . . Garrison Access Hacks . | . . . Unauthorized Hacks 7 | . 7 . Terminals 5 | . 5 . Skim 5 | . 5 . Fabricators . | . . . Repair Stations . | . . . Recycling Units 2 | . 2 . Tunnel 2 | . 2 . Scanalyzers . | . . . Garrison Access . | . . . Data Cores Recovered . | . . . Used . | . . . Hacking Detections 8 | . 8 . Full Trace Events . | . . . Feedback Events . | . . . Feedback Blocked . | . . . Robot Schematics Acquired . | . . . Robots Built . | . . . Authchips . | . . . Time . | . . . Total Robot Build Rating . | . . . Part Schematics Acquired . | . . . Parts Built . | . . . Authchips . | . . . Time . | . . . Total Part Build Rating . | . . . Parts Repaired 1 | . 1 . Time 26 | . 26 . Parts Recycled . | . . . Recycled Matter . | . . . Retrieved Matter . | . . . Retrieved Components 10 | . 10 . Parts Scanalyzed . | . . . Part Schematics Acquired . | . . . Parts Damaged . | . . . Bothacking | -11 -10 -10 ------------ Run | Yrd Mat Sub Used RIF Installer . | . . . Robots Hacked . | . . . Non-combat . | . . . Combat . | . . . Robot Hacks Applied . | . . . Relay Couplers Released . | . . . Fabnet Peak Effective % . | . . . Robots Rewired . | . . . Allies Hacked . | . . . Hacks Repelled . | . . . Allies | -11 -10 -10 -------- Run | Yrd Mat Sub Total Allies . | . . . Largest Group . | . . . Highest-Rated Group . | . . . Highest-Rated Ally . | . . . Total Orders . | . . . Ally Attacks . | . . . Total Damage . | . . . Kills . | . . . Allies Corrupted . | . . . Allies Melted . | . . . Intel | -11 -10 -10 ------- Run | Yrd Mat Sub Robot Analysis Total 1 | . 1 . Derelict Logs Recovered 1 | . . 1 Drone Launches . | . . . Drone Recoveries . | . . . Exploration | -11 -10 -10 ------------- Run | Yrd Mat Sub Turns Passed 2789 | 112 1727 950 Spaces Moved 1347 | 63 847 437 Core 42 | 42 . . Treads 1305 | 21 847 437 Legs . | . . . Wheels . | . . . Hover . | . . . Flight . | . . . Fastest Speed 50 | 50 160 160 Average Speed 156 | 86 160 160 Slowest Speed 240 | 160 240 160 Overloaded Moves . | . . . Propulsion Burnouts . | . . . Robots Hopped . | . . . Cave-ins Triggered . | . . . Exploration Rate (%) 42 | 4 100 22 Regions Visited 2 Branch Regions 1 Pre-discovered Areas 4 | . 3 1 Known Exits Taken . | . . . Unknown Exits Taken 2 | 1 1 . Scrap Searched . | . . . Spaces Dug 7 | . . 7 Terrain Destroyed 26 | . 10 16 Melee . | . . . Projectile 1 | . . 1 AOE 25 | . 10 15 Terrain Rammed . | . . . Walls Destroyed . | . . . Machines Disabled . | . . . Actions | -11 -10 -10 --------- Run | Yrd Mat Sub Total 1732 | 90 1051 591 Wait 150 | . 66 84 Move 1345 | 62 846 437 Hop . | . . . Pick Up 28 | 8 17 3 Fast Attach 12 | 5 6 1 Attach 11 | 1 2 8 Detach 2 | . 2 . Swap 19 | . 10 9 Drop 15 | . 14 1 Fire 143 | 14 85 44 Melee 4 | . . 4 Ram . | . . . Kick . | . . . Crush 3 | . 3 . Escape Stasis . | . . . Rewire . | . . . Trap . | . . . Miscellaneous . | . . . Route ------- -11/Scrapyard -10/Materials (discovered 5 exits: *Mat x3 / *Min / [*Sub]) -10/Subcaves (discovered 1 exit: *Rec) History --------- Turn | Location | Event 17 | -11/Scrapyard | Discovered new exit (range 15) 113 | -11/Scrapyard | Entered Materials 186 | -10/Materials | Discovered new exit (range 16) 307 | -10/Materials | Build established: Mutant 381 | -10/Materials | Discovered new exit (range 15) 662 | -10/Materials | Identified exit to Materials 662 | -10/Materials | Identified exit to Mines 666 | -10/Materials | Repaired Lgt. Treads 798 | -10/Materials | Learned location of Recycling (-8) 850 | -10/Materials | Learned 2 Storage zone layouts 892 | -10/Materials | Learned 2 Storage zone layouts 1009 | -10/Materials | Learned Storage stockpile data 1148 | -10/Materials | Central database locked down 1831 | -10/Materials | Discovered new exit (range 7) 1840 | -10/Materials | Entered Subcaves 1841 | -10/Subcaves | Identified exit to Recycling 1863 | -10/Subcaves | Learned location of Storage (-8) 2569 | -10/Subcaves | Core integrity fell below 50% 2731 | -10/Subcaves | Lost 5 parts (2n1u2w) 2785 | -10/Subcaves | Core integrity fell below 20% 2790 | -10/Subcaves | Destroyed by AD-8KC(R) with Subdweller Beam Cannon Last Messages --------------- 02697_ IT-5SI(R) Sub. Beam Cannon blasted off. 02700_ Imp. Assault Rifle destroyed. 02707_ Subatomizers dissect the Sub. Power Source. 02708_ LS-R9B(R) knocked back. 02720_ LS-R9B(R) destroyed. 02722_ Subatomizers dissect the Sub. Power Source. 02725_ Acquired Sub. Beam Cannon. 02728_ Acquired Sub. Power Source. 02729_ Acquired 8 matter. 02733_ Acquired 2 matter. 02735_ Acquired 30 matter. 02736_ Acquired 2 matter. 02738_ Acquired 4 matter. 02741_ IT-5SI(R) affixes Scrap Shield Fragment to Scrap Shield. 02745_ Subatomizers dissect the Sub. Laser. 02747_ Acquired Sub. Laser. 02782_ Sub. Beam Cannon destroyed. Map ----- +----------------------------------------------------+ | ?????????????????????????### #?????????? # | | ???????????????????????### ## ##?????????? | | ??????????????????????## ### ##????????? ? | | ?????????????????????## ####?# #????????? ? | | ?????????????????????# ##??## #???????? ??## | | ?????????????????????# ##?# ####??????????? | | ?????????????????????# #?# ## ##?????????? | | ?????????????????????## #?# #?????????? | | ??????????????????????# #####?## #?????????? | | ??????????????????????## #?# #### ##?????????? | | ????????????????????#### #?# #?# ##??????????? | | ????????????????????# #?? ### ##???????????? | | ????????????????????### ##??# ##########???????? | | ????????????????????## # #??# ##? #???????? | | ????????????????????# ##?##% ## #????????? | | ??????????????????###### ####% #?????????? | | ?????????????????## ##?# !& & ##?????????? | | ?????????????????# #### ### ####??????????? | | ?????????????????? #?###?##%% #?????????????? | | ??????????????????# ??????## ##????????????? | | ?????????????????## ##?????# "" ##???????????? | | ?????????????????# ##????##"" ####????????? | | ?????????????????# ""##???#"" #????????? | | ??????????????#### & ""#??##"" ## #????????? | | ?????????????## " "#####""" ### ##????????? | | ????????# """ ;@ R" "#### ##?????????? | | ???????# """## " % ###" ##??????????? | | ??????# ##"####"" #";### #???????????? | | ?????? #?###??#"%###### ##??????????? | | ?????? ### ??????# " "#???# ##?????????? | | ????? ???## ?????# " ##???## ##????????? | | ?????? ?????###????""""" "?????### ##???????? | | ?????? ?????????????# "" ""??????### #???????? | | ????????????????????? """"?????????# #???????? | | ???????????????????????? """?????????## #???????? | | ???????????????????????? "##??????????## #???????? | | ????????????????????????#??????????????###???????? | | ?????????????????????????????????????????????????? | | ?????????????????????????????????????????????????? | | ?????????????????????????????????????????????????? | | ?????????????????????????????????????????????????? | | ?????????????????????????????????????????????????? | | ?????????????????????????????????????????????????? | | ?????????????????????????????????????????????????? | | ?????????????????????????????????????????????????? | | ?????????????????????????????????????????????????? | | ?????????????????????????????????????????????????? | | ?????????????????????????????????????????????????? | | ?????????????????????????????????????????????????? | | ?????????????????????????????????????????????????? | +----------------------------------------------------+ Best States ------------- Heat Dissipation 35 Energy Generation 10 Energy Capacity 250 Matter Stores 300 Matter Capacity 300 Sight Range 16 Terrain Scan Density 10 Armor Coverage 100 Resistance: KI 10 Evasion (%) 50 Recoil Reduction 2 Item Schematics ----------------- None Robot Schematics ------------------ None Fabricated ------------ Nothing Alien Tech Used ----------------- None Achievements -------------- None Challenges ------------ None Game ------ Seed PhysicsThermalReactor Manual? 0 Play Time 00:19:11 Cumulative 304.7 hours Start 2024.09.08 @ 17:11:34 End 2024.09.11 @ 18:11:47 Sessions 2 Manual Loads 0 Difficulty Rogue Special Mode None Game No. 222 Rogue 217 Adventurer 5 Explorer 0 Win Type - Total 7 Types 4/0/3/0/0/0/0/0/0 Lore% 66 Gallery% 84 Achievement% 69 Wizard Run 0 Options --------- Layout 2 ASCII 0 Keyboard 0 Movement Mouse Keybinds 0 Fullscreen 2 Font 24/Smallcaps Map View 50x44 Zoom Use 0% Tactical HUD 1 Map Filters NONE Filters NONE Steam 1 RUN: 6183a1c5-aa7b-42ae-b0ab-9523b0070980